Cogmind - Beta 15 @@@ ROGUE MODE // 2025.07.23 @ 14:23:47 Player: beans Result: Destroyed by Y-45 Defender with Heavy Assault Rifle Performance ------------- Evolutions (1) 500 Regions Visited (2) 400 Robots Destroyed (49) 245 Value Destroyed (771) 771 Prototype IDs (1) 20 Alien Tech Used (0) 0 Bonus (0) 0 TOTAL SCORE: 1936 Bonus ------- None Cogmind --------- Core Integrity 0/400 Matter 300/300 Energy 50/100 System Corruption 0% Temperature Cool (21) Movement Walking (260) Ox2 Location -9/Materials Parts ------- > --- POWER (1) -------- (None) > --- PROPULSION (2) --- Aluminum Leg > --- UTILITY (4) ------ Large Storage Unit Signal Interpreter Terrain Scan Processor Tractor Beam > --- WEAPON (2) ------- Improved EM Shotgun Improved EM Shotgun > --- INVENTORY (15) --- Light Ion Engine Improved Light Cannon Grenade Launcher Peak State ------------ > --- POWER ------------ (None) > --- PROPULSION ------- Aluminum Leg > --- UTILITY ---------- Large Storage Unit Signal Interpreter Terrain Scan Processor Tractor Beam > --- WEAPON ----------- Improved EM Shotgun Improved EM Shotgun > --- INVENTORY -------- Improved Light Cannon Grenade Launcher [Rating: 12] Favorites ----------- Power Light Ion Engine Engine Light Ion Engine Propulsion Light Treads Treads Light Treads Leg Aluminum Leg Flight Unit Flight Unit Utility Signal Interpreter Device Terrain Scanner Storage Large Storage Unit Processor Signal Interpreter Weapon Heavy Assault Rifle Energy Gun Medium Laser Ballistic Gun Heavy Assault Rifle Ballistic Cannon Improved Light Cannon Launcher Grenade Launcher Impact Weapon Hammer Build | -11 -10 -9 ------- Run | Yrd Mat Mat Slots Evolved 2 | . . 2 Power . | . . . Propulsion . | . . . Utility 2 | . . 2 Weapon . | . . . Parts Attached 24 | 4 5 15 Power 1 | 1 . . Engine 1 | 1 . . Core . | . . . Reactor . | . . . Propulsion 6 | 2 . 4 Treads 2 | 2 . . Leg 2 | . . 2 Wheel . | . . . Hover . | . . . Flight 2 | . . 2 Utility 5 | . 2 3 Device 2 | . 1 1 Storage 1 | . . 1 Processor 2 | . 1 1 Hackware . | . . . Protection . | . . . Artifact . | . . . Weapon 12 | 1 3 8 Energy Gun 4 | . 1 3 Energy Cannon . | . . . Ballistic Gun 5 | 1 1 3 Ballistic Cannon 1 | . . 1 Launcher 1 | . . 1 Special Weapon . | . . . Impact Weapon 1 | . 1 . Slashing Weapon . | . . . Piercing Weapon . | . . . Special Melee Weapon . | . . . Unidentified Prototypes 1 | . . 1 Parts Lost 11 | . 5 6 Power 1 | . 1 . Propulsion 5 | . 2 3 Utility 1 | . 1 . Weapon 4 | . 1 3 Highest Loss Streak 3 | . 3 3 To Critical Strikes . | . . . Average Backups . | . . . Power . | . . . Propulsion . | . . . Utility . | . . . Weapon . | . . . Tool/Special . | . . . Unused Backups 3 | . 3 . Power . | . . . Propulsion 2 | . 2 . Utility 1 | . 1 . Weapon . | . . . Tool/Special . | . . . Average Slot Usage (%) 58 | . 61 55 Engine 1 | . 2 . Treads 11 | . 24 . Leg 2 | . . 4 Flight 2 | . . 4 Device 6 | . 11 2 Storage 5 | . . 10 Processor 12 | . 8 14 Energy Gun 4 | . 7 1 Ballistic Gun 5 | . . 10 Ballistic Cannon 1 | . . 1 Launcher 2 | . . 4 Impact Weapon 2 | . 4 . Peak Build Rating 12 | 4 5 12 Average Rating 5 | 2 4 7 On Entrance 1 | . 3 2 Naked Turns . | . . . Heaviest Build 27 | 4 6 27 Greatest Support 40 | 40 40 13 Greatest Overweight (x) 8 | . . 8 Average Overweight (x) . | . . 1 Largest Inventory Capacity 15 | 5 5 15 Average Capacity 9 | 5 5 14 Most Carried 3 | 3 2 3 Average Carried . | . . . Final Capacity 15 | 5 5 15 Final Carried 3 | 1 1 3 Class Distribution -------------------- 89% | Mutant 10% | Scavenger-Mutant Dominant Class ---------------- Mutant | -10/Materials Mutant | -9/Materials Resources | -11 -10 -9 ----------- Run | Yrd Mat Mat Matter Collected 826 | 141 144 541 Remotely 184 | . . 184 Salvage Created 1240 | . 421 819 Parts 92 | . 20 72 Haulers Intercepted 2 | . 2 . Recyclers Shooed 1 | . . 1 Parts Field Recycled . | . . . Retrieved Matter . | . . . Parts Self-Destructed . | . . . Prevented . | . . . Kills | -11 -10 -9 ------- Run | Yrd Mat Mat Combat Hostiles Destroyed 19 | . 7 12 Melee 2 | . 2 . Guns 7 | . 2 5 Cannons 5 | . . 5 AOE 1 | . . 1 Classes Destroyed 10 | . 5 5 Worker 9 | . 1 8 Builder 9 | . 2 7 Tunneler 1 | . . 1 Hauler 2 | . 2 . Recycler 4 | . . 4 Mechanic 1 | . . 1 Watcher 4 | . 1 3 Swarmer 7 | . . 7 Grunt 11 | . 7 4 Sentry 1 | . . 1 Best Kill Streak 12 | . 4 12 Combat Bots Only 7 | . 2 7 Max Kills in Single Turn 2 | . 1 2 Gunslinging . | . . . Exploded 1 | . . 1 Melee 1 | . 1 . Uniques/NPCs Destroyed . | . . . Combat | -11 -10 -9 -------- Run | Yrd Mat Mat Hostile Shots Fired 150 | . 66 84 Missed 46 | . 14 32 Hits 104 | . 52 52 Melee 3 | . . 3 Projectile 101 | . 52 49 Critical Strikes 5 | . 4 1 Damage Taken 1741 | . 722 1019 Core 639 | . 223 416 Absorbed by Shields . | . . . Core Remaining (%) 55 | 100 10 . Volleys Fired 128 | . 62 66 Largest 2 | . 1 2 Hottest 90 | . 50 90 Shots Fired 159 | . 62 97 Gun 121 | . 62 59 Cannon 22 | . . 22 Launcher 16 | . . 16 Special . | . . . Kinetic 73 | . . 73 Thermal 62 | . 62 . Explosive 16 | . . 16 Electromagnetic 8 | . . 8 Robot Hit Streak 9 | . 8 9 Robot Miss Streak 4 | . 3 4 Penetration Max . | . . . Secondary Targets . | . . . Shots Hit Robots 95 | . 52 43 Core Hits 60 | . 13 47 Critical Kills . | . . . Critical Parts Destroyed 3 | . 3 . Critical Strikes 9 | . 9 . Burn 6 | . 6 . Smash 3 | . 3 . Melee Attacks 26 | . 25 1 Impact 26 | . 25 1 Slashing . | . . . Piercing . | . . . Sneak Attacks 2 | . 2 . Combat Hostiles . | . . . Follow-up Attacks . | . . . Damage Inflicted 2124 | . 778 1346 Guns 963 | . 523 440 Cannons 223 | . . 223 Explosions 683 | . . 683 Melee 255 | . 255 . Ramming . | . . . Kinetic 591 | . . 591 Thermal 605 | . 523 82 Explosive 601 | . . 601 Electromagnetic 72 | . . 72 Impact 255 | . 255 . Slashing . | . . . Piercing . | . . . Highest Corruption 1 | . 1 . Average Corruption 1 | . 1 . Corruption Purged . | . . . Corruption Blocked . | . . . Overload Shots . | . . . Overflow Damage 158 | . 136 22 Projectiles 2 | . . 2 Explosions 20 | . . 20 Melee 136 | . 136 . Knockbacks 3 | . 1 2 Impact 1 | . 1 . Kinetic 1 | . . 1 Secondary 1 | . . 1 Self-Inflicted Damage 415 | . 42 373 Shots 9 | . 1 8 Rammed 1 | . 1 . Targets Rammed 2 | . 2 . Kicked . | . . . Crushed 1 | . 1 . Highest Temperature 291 | . 291 12 Average Temperature 93 | . 102 5 Received Heat Transfer 627 | . 468 159 Siege Activations . | . . . Martial Activations . | . . . Shielding Activations . | . . . Robots Disrupted . | . . . Combat Hostiles . | . . . Robots Corrupted 2 | . 1 1 Combat Hostiles 2 | . 1 1 Parts Fried 1 | . 1 . Impact Corruptions 5 | . 4 1 Robots Melted 2 | . 2 . Combat Hostiles 2 | . 2 . Parts Melted 1 | . 1 . Heat Transferred 2098 | . 1998 100 Parts Sabotaged . | . . . Parts Stolen . | . . . Parts Stripped . | . . . Power Chain Reactions . | . . . Alert | -11 -10 -9 ------- Run | Yrd Mat Mat Maximum Alert Level 1 | . . 1 Low Security (%) 80 | 100 100 62 Level 1 19 | . . 37 Level 2 . | . . . Level 3 . | . . . Level 4 . | . . . Level 5 . | . . . High Security . | . . . Max Security . | . . . Peak Influence 296 | . 58 296 Initial 24 | . . 24 Average 92 | . 11 168 Influence Increases 942 | . 241 701 Destroy 0b10 Robot/C 380 | . 140 240 Destroy 0b10 Robot/NC 150 | . 30 120 Destroy Leader 72 | . 36 36 Disable Machine 135 | . 15 120 Destroy Structure 175 | . 5 170 Partial Spotted 15 | . . 15 Lose Combat Pursuer 15 | . 15 . Influence Decreases 639 | . 184 455 Entered New Map 33 | . . 33 Time Decay 521 | . 159 362 Lost Part 85 | . 25 60 Squads Dispatched 1 | . 1 . Investigation 1 | . 1 . Extermination . | . . . Reinforcement . | . . . Assault . | . . . Garrison . | . . . Intercept . | . . . Searches Triggered . | . . . Construction Impeded . | . . . Haulers Reinforced . | . . . Active Scanning Responses . | . . . Cargo Convoy Interrupts . | . . . Stealth | -11 -10 -9 --------- Run | Yrd Mat Mat Distress Signals 4 | . 3 1 Communications Jammed . | . . . Distress Signals . | . . . Times Spotted 33 | . 14 19 Peak Tracking Total 4 | . 3 4 Tactical Retreats 1 | . 1 . Traps | -11 -10 -9 ------- Run | Yrd Mat Mat Traps Triggered 5 | . 1 4 Indirectly . | . . . Trap Hack Attempts . | . . . Triggered . | . . . Disarmed . | . . . Reprogrammed . | . . . Reused . | . . . Traps Extracted . | . . . Installed . | . . . Triggered . | . . . Machines | -11 -10 -9 ---------- Run | Yrd Mat Mat Machines Disabled 9 | . 1 8 Max in Single Turn 2 | . 1 2 Machines Repaired . | . . . Machines Dismantled . | . . . Machines Sabotaged . | . . . Overloaded Fab Kills . | . . . Hacking | -11 -10 -9 --------- Run | Yrd Mat Mat Machines Accessed . | . . . Terminals . | . . . Fabricators . | . . . Repair Stations . | . . . Recycling Units . | . . . Scanalyzers . | . . . Garrison Access . | . . . Total Hacks . | . . . Successful . | . . . Failed . | . . . Catastrophic . | . . . Database Lockouts . | . . . Manual . | . . . Terminals . | . . . Fabricators . | . . . Repair Stations . | . . . Recycling Units . | . . . Scanalyzers . | . . . Garrison Access . | . . . Terminal Hacks . | . . . Fabricator Hacks . | . . . Repair Station Hacks . | . . . Recycling Unit Hacks . | . . . Scanalyzer . | . . . Garrison Access Hacks . | . . . Unauthorized Hacks . | . . . Terminals . | . . . Fabricators . | . . . Repair Stations . | . . . Recycling Units . | . . . Scanalyzers . | . . . Garrison Access . | . . . Data Cores Recovered . | . . . Used . | . . . Hacking Detections . | . . . Full Trace Events . | . . . Feedback Events . | . . . Feedback Blocked . | . . . Robot Schematics Acquired . | . . . Robots Built . | . . . Authchips . | . . . Time . | . . . Total Robot Build Rating . | . . . Part Schematics Acquired . | . . . Parts Built . | . . . Authchips . | . . . Time . | . . . Total Part Build Rating . | . . . Parts Repaired . | . . . Time . | . . . Parts Recycled . | . . . Recycled Matter . | . . . Retrieved Matter . | . . . Retrieved Components . | . . . Parts Scanalyzed . | . . . Part Schematics Acquired . | . . . Parts Damaged . | . . . Bothacking | -11 -10 -9 ------------ Run | Yrd Mat Mat Used RIF Installer . | . . . Robots Hacked . | . . . Non-combat . | . . . Combat . | . . . Robot Hacks Applied . | . . . Relay Couplers Released . | . . . Fabnet Peak Effective % . | . . . Robots Rewired . | . . . Allies Hacked . | . . . Hacks Repelled . | . . . Allies | -11 -10 -9 -------- Run | Yrd Mat Mat Total Allies . | . . . Largest Group . | . . . Highest-Rated Group . | . . . Highest-Rated Ally . | . . . Total Orders . | . . . Ally Attacks . | . . . Total Damage . | . . . Kills . | . . . Allies Corrupted . | . . . Allies Melted . | . . . Intel | -11 -10 -9 ------- Run | Yrd Mat Mat Active Infowar (turns) 594 | . 594 . Terrain 594 | . 594 . Robot Analysis Total . | . . . Derelict Logs Recovered . | . . . Drone Launches . | . . . Drone Recoveries . | . . . Exploration | -11 -10 -9 ------------- Run | Yrd Mat Mat Turns Passed 1590 | 54 713 823 Spaces Moved 682 | 32 356 294 Core 228 | 5 107 116 Treads 276 | 27 249 . Legs 117 | . . 117 Wheels . | . . . Hover . | . . . Flight 61 | . . 61 Fastest Speed 50 | 50 50 50 Average Speed 160 | 142 126 202 Slowest Speed 520 | 160 160 520 Overloaded Moves . | . . . Propulsion Burnouts . | . . . Robots Hopped . | . . . Potential Cave-ins 4 | . 4 . Cave-ins Triggered . | . . . Exploration Rate (%) 31 | 3 59 31 Regions Visited 2 Branch Regions . Pre-discovered Areas . | . . . Known Exits Taken 1 | . 1 . Unknown Exits Taken 1 | 1 . . Scrap Searched . | . . . Spaces Dug 7 | . 7 . Terrain Destroyed 218 | . 7 211 Melee 7 | . 7 . Projectile 2 | . . 2 AOE 209 | . . 209 Terrain Rammed . | . . . Walls Destroyed . | . . . Machines Disabled . | . . . Actions | -11 -10 -9 --------- Run | Yrd Mat Mat Total 975 | 41 511 423 Wait 78 | . 50 28 Move 680 | 31 355 294 Hop . | . . . Pick Up 29 | 5 8 16 Fast Attach . | . . . Attach 23 | 4 5 14 Detach . | . . . Swap 2 | . . 2 Drop 7 | 1 4 2 Fire 128 | . 62 66 Melee 26 | . 25 1 Ram . | . . . Kick . | . . . Crush 2 | . 2 . Escape Stasis . | . . . Rewire . | . . . Trap . | . . . Miscellaneous . | . . . Route ------- -11/Scrapyard -10/Materials (discovered 2 exits: *Mat x2) -9/Materials (discovered 1 exit: [*Min]) History --------- Turn | Location | Event 10 | -11/Scrapyard | Discovered new exit (range 15) 55 | -11/Scrapyard | Entered Materials 267 | -10/Materials | Discovered new exit (range 13) 309 | -10/Materials | Build established: Mutant 553 | -10/Materials | Discovered new exit (range 5) 684 | -10/Materials | Core integrity fell below 50% 719 | -10/Materials | Core integrity fell below 20% 721 | -10/Materials | Lost 3 parts (2n1u) 765 | -10/Materials | Identified exit to Materials 768 | -10/Materials | Entered another Materials area 768 | -9/Materials | Evolved 2 slots: Utility x2 790 | -9/Materials | Discovered new exit (range 15) 1017 | -9/Materials | Core integrity fell below 50% 1075 | -9/Materials | Lost 3 parts (1n2w) 1076 | -9/Materials | Destroyed 7 combat bots 1591 | -9/Materials | Destroyed by Y-45 Defender with Heavy Assault Rifle Last Messages --------------- U-05 Engineer builds a Wall. Acquired Prototype Energy Gun. Identified Imp. EM Shotgun. Faulty integration triggers energy drain (-56). Dropped Faulty Imp. EM Shotgun. Acquired Imp. EM Shotgun. Dropped Hvy. Assault Rifle. Acquired Imp. EM Shotgun. K-01 Serf cleans the Fusion Modulator. K-01 Serf destroyed. K-01 Serf collects debris. Acquired 30 matter. K-01 Serf collects debris. K-01 Serf destroyed. K-01 Serf cleans the Fusion Modulator. K-01 Serf collects debris. K-01 Serf destroyed. Acquired Lgt. Ion Engine. Fusion Modulator explodes. T-07 Excavator destroyed. Map ----- +----------------------------------------------------+ | ?????????????????????????????????????????????????? | | ?????????????????????????????????????????????????? | | ?????????????????????????????????????????????????? | | ?????????????????????????????????????????????????? | | ?????????????????????????????????????????????????? | | ?????????????????????????????????????????????????? | | ?????????????????????????????????????????????????? | | ?????????????????????????????????????????????????? | | ?????????????????????????????????????????????????? | | ?????????????????????????????????????????????????? | | ?????????????????????????????????????????????????? | | ?????????????????????????????????????????????????? | | ?????????????????????????????????????????????????? | | ?????????????????????????????????????????????????? | | ?????????????????????????????????????????????????? | | ?????????????????????????????????????????????????? | | ??????????????????????#######????????????????????? | | ??????????????????????# % ????????????????????? | | ??????????????????????# ????#???????????????? | | ??????????????????????? "T" ????g#???????????????? | | ?????????????????????## """ ???r ##??????????????? | | ???????????????????###;#;;;+## #??????????????? | | ???????????????????+=%* #??????????????? | | ???????????????????# = Y #??????????????? | | ??????????????""" #;;;;;;;;;; #??????????????? | | ??????????????""" ;; @ !;#??????????????????? | | ??????????????""" ;; ;#??????????????????? | | ????????????# ;; != ;#??????????????????? | | ????????????# """ #; ;#??????????????????? | | ???????????????""??#; ##??????????????????? | | ???????????????????#; [ #???????????????????? | | ????#######????????## [ #???????????????????? | | ##### # ############# [ #???????????????????? | | % + #???????????????????? | | ##### #######################???????????????????? | | ????#######??????????????????????????????????????? | | ?????????????????????????????????????????????????? | | ?????????????????????????????????????????????????? | | ?????????????????????????????????????????????????? | | ?????????????????????????????????????????????????? | | ?????????????????????????????????????????????????? | | ?????????????????????????????????????????????????? | | ?????????????????????????????????????????????????? | | ?????????????????????????????????????????????????? | | ?????????????????????????????????????????????????? | | ?????????????????????????????????????????????????? | | ?????????????????????????????????????????????????? | | ?????????????????????????????????????????????????? | | ?????????????????????????????????????????????????? | | ?????????????????????????????????????????????????? | +----------------------------------------------------+ Best States ------------- Heat Dissipation 28 Energy Generation 10 Energy Capacity 125 Matter Stores 300 Matter Capacity 300 Sight Range 16 Terrain Scan Range 14 Terrain Scan Density 85 Evasion (%) 50 Recoil Reduction 2 Item Schematics ----------------- None Robot Schematics ------------------ None Fabricated ------------ Nothing Repaired ---------- Nothing Alien Tech Used ----------------- None Achievements -------------- None Challenges ------------ None Game ------ Seed InertialTerrorTorch Manual? 0 Play Time 00:10:38 Cumulative 66.1 hours Start 2025.07.23 @ 14:14:39 End 2025.07.23 @ 14:23:47 Sessions 1 Manual Loads 0 Difficulty Rogue Special Mode None Game No. 275 Rogue 275 Adventurer 0 Explorer 0 Win Type - Total 0 Types 0/0/0/0/0/0/0/0/0/0 Lore% 43 Gallery% 32 Achievement% 26 Wizard Run 0 Options --------- Layout 2 ASCII 0 Keyboard 0 Movement Mouse Keybinds 0 Fullscreen 1 Font 24/Terminus Map View 50x44 Zoom Use 0% Tactical HUD 0 Map Filters NONE Filters NONE Steam 1 RUN: b3502d7e-6f8f-4e85-95d5-8871a84862ca